bitfinex/quotes_BTCUSD_20241211
["timestamp","ask_amount","ask_price","bid_price","bid_amount"]
[1733889674093,0.00105638,97461.0,97460.0,0.30752526]
[1733889674304,0.00205638,97461.0,97460.0,0.31552526]
[1733889675469,0.282913,97507.0,97460.0,0.46552526]
[1733889675470,0.0778,97507.0,97460.0,0.46552526]
[1733889675666,0.205131,97499.0,97485.0,0.205158]
[1733889675844,0.20514,97494.0,97481.0,0.205166]
[1733889676193,0.205136,97496.0,97481.0,0.205166]
[1733889676395,0.205119,97504.0,97470.0,0.12124622]
[1733889676597,0.20517145,97507.0,97495.0,0.205137]
[1733889676852,0.20517145,97507.0,97472.0,0.1962]
[1733889676853,0.20717145,97507.0,97484.0,0.20516]
[1733889677077,0.205115,97506.0,97485.0,0.10532524]
[1733889677402,0.00205645,97507.0,97498.0,0.20513]
[1733889677692,0.00205645,97507.0,97486.0,0.0802]
[1733889677693,0.00205645,97507.0,97503.0,0.205121]
[1733889677885,5.645e-05,97507.0,97503.0,0.205121]
[1733889678091,5.645e-05,97507.0,97503.0,0.410242]
[1733889678900,0.00405645,97507.0,97503.0,0.51556724]
[1733889679113,5.645e-05,97507.0,97503.0,0.51556724]
[1733889679287,5.645e-05,97507.0,97505.0,0.205117]
[1733889679288,0.00105645,97507.0,97505.0,0.205117]
[1733889680079,5.645e-05,97507.0,97506.0,0.10532524]
[1733889680496,0.00105645,97507.0,97506.0,0.10532524]
[1733889681738,5.645e-05,97507.0,97506.0,0.10532524]
[1733889681942,0.00105645,97507.0,97506.0,0.11132524]
[1733889682569,0.00105645,97507.0,97506.0,0.11432524]
[1733889683623,0.00105645,97507.0,97506.0,0.26432524]
[1733889683972,0.00105645,97507.0,97506.0,0.49452524]
[1733889685738,0.00105645,97507.0,97506.0,0.64452524]
[1733889686316,5.645e-05,97507.0,97506.0,0.63552524]
[1733889686729,5.645e-05,97507.0,97506.0,0.64452524]
[1733889687089,5.645e-05,97507.0,97506.0,0.63852524]
[1733889687612,5.645e-05,97507.0,97506.0,0.63552524]
[1733889688018,0.205039,97543.0,97518.0,0.15]
[1733889688223,0.205046,97539.0,97527.0,0.20507]
[1733889688609,0.205046,97539.0,97525.0,0.205074]
[1733889688894,0.205046,97539.0,97527.0,0.205071]
[1733889689687,0.00020433,97540.0,97514.0,0.205097]
[1733889689891,0.00020433,97540.0,97516.0,0.15]
[1733889690094,0.00020433,97540.0,97517.0,0.10532524]
[1733889690716,0.205058,97534.0,97519.0,0.205088]
[1733889691088,0.205048,97538.0,97519.0,0.205088]
[1733889691089,0.205048,97538.0,97524.0,0.205076]
[1733889691474,0.410097,97538.0,97524.0,0.205076]
[1733889691670,0.205057,97534.0,97524.0,0.205076]
[1733889691918,0.205057,97534.0,97519.0,0.205088]
[1733889692945,0.00020433,97540.0,97521.0,0.205084]
[1733889693152,0.00020433,97540.0,97532.0,0.205059]
[1733889693533,0.00320433,97540.0,97532.0,0.205059]
[1733889693973,0.00020433,97540.0,97536.0,0.20505]
[1733889695027,0.00020433,97540.0,97536.0,0.412101]
[1733889695426,0.00120433,97540.0,97536.0,0.412101]
[1733889695827,0.00020433,97540.0,97536.0,0.412101]
[1733889696246,0.00020433,97540.0,97536.0,0.414101]
[1733889696474,0.00020433,97540.0,97536.0,0.51942624]
[1733889697755,0.00020433,97540.0,97536.0,0.31437524]
[1733889697911,0.00020433,97540.0,97536.0,0.004]
[1733889697912,0.205046,97539.0,97536.0,0.004]
[1733889698118,0.00020433,97540.0,97536.0,0.004]
[1733889698720,0.205046,97539.0,97536.0,0.002]
[1733889698928,0.00020433,97540.0,97529.0,0.205065]
[1733889699205,0.007,97539.0,97529.0,0.205065]
[1733889699496,0.002,97539.0,97529.0,0.205065]
[1733889699640,0.00020433,97540.0,97529.0,0.205065]
[1733889700068,0.00020433,97540.0,97536.0,0.002]
[1733889700935,0.00020433,97540.0,97536.0,0.004]
[1733889701358,0.00020433,97540.0,97536.0,0.002]
[1733889701359,0.205046,97539.0,97536.0,0.002]
[1733889701615,0.205046,97539.0,97536.0,0.004]
[1733889701803,0.410092,97539.0,97536.0,0.004]
[1733889702021,0.410092,97539.0,97536.0,0.002]
[1733889702392,0.00020433,97540.0,97529.0,0.01140134]
[1733889702597,0.205065,97530.0,97514.0,0.205097]
[1733889702773,0.001,97539.0,97507.0,0.205111]
[1733889702988,0.205065,97530.0,97529.0,0.001]
[1733889703506,0.205065,97530.0,97508.0,0.10532524]
[1733889703507,0.205086,97521.0,97509.0,0.205109]
[1733889703693,0.410172,97521.0,97514.0,0.001]
[1733889704123,0.205086,97521.0,97514.0,0.001]
[1733889705007,0.205065,97530.0,97515.0,0.205096]
[1733889705169,0.205052,97536.0,97516.0,0.10532524]
[1733889705400,0.205022,97551.0,97521.0,0.15]
[1733889705596,0.205022,97551.0,97523.0,0.205079]
[1733889705597,0.001,97530.0,97523.0,0.205079]
[1733889705805,0.001,97530.0,97524.0,0.10532524]
[1733889706056,0.205048,97538.0,97524.0,0.10532524]
[1733889706290,0.003,97530.0,97525.0,0.205075]
[1733889706520,0.205048,97538.0,97525.0,0.31040024]
[1733889706884,0.002,97536.0,97525.0,0.31040024]
[1733889707435,0.205063,97531.0,97525.0,0.10532524]
[1733889707652,0.002,97536.0,97525.0,0.10532524]
[1733889707872,0.205057,97534.0,97525.0,0.10532524]
[1733889708939,0.205057,97534.0,97525.0,0.10632524]
[1733889709128,0.205057,97534.0,97525.0,0.10832524]
[1733889709841,0.205057,97534.0,97525.0,0.10632524]
[1733889710042,0.205057,97534.0,97525.0,0.10732524]
[1733889710600,0.20505,97537.0,97525.0,0.10732524]
[1733889710985,0.4101,97537.0,97525.0,0.10732524]
[1733889711754,0.205059,97533.0,97525.0,0.10632524]
[1733889711880,0.205059,97533.0,97525.0,0.10532524]
[1733889712271,0.205068,97529.0,97525.0,0.10532524]
[1733889712907,0.205023,97550.0,97524.0,0.0117448]
[1733889713114,0.20508,97523.0,97512.0,0.15]
[1733889713312,0.20508,97523.0,97514.0,0.15]
[1733889713513,0.205031,97546.0,97525.0,0.001]
[1733889713715,0.205073,97526.0,97525.0,0.001]
[1733889714997,0.20509,97518.0,97517.0,0.01184207]
[1733889715196,0.205069,97528.0,97500.0,0.0001714]
[1733889715406,0.205112,97508.0,97501.0,0.15]
[1733889716199,0.20512,97504.0,97501.0,0.15]
[1733889716434,0.410224,97508.0,97501.0,0.15]
[1733889716620,0.410224,97508.0,97501.0,0.15005645]
[1733889717034,0.410224,97508.0,97501.0,0.15605645]
[1733889717314,0.205069,97528.0,97501.0,0.15605645]
[1733889717315,0.410241,97504.0,97501.0,0.00605645]
[1733889717530,0.20512,97504.0,97501.0,0.00605645]
[1733889718073,0.205115,97507.0,97501.0,0.00605645]
[1733889718271,0.31039624,97527.0,97501.0,0.20918145]
[1733889718272,0.205099,97514.0,97501.0,0.20918145]
[1733889718475,0.205109,97509.0,97501.0,0.00405645]
[1733889718680,0.205109,97509.0,97501.0,0.00605645]
[1733889719061,0.205118,97505.0,97501.0,0.00205645]
[1733889719272,0.205118,97505.0,97501.0,0.00505645]
[1733889719472,0.205118,97505.0,97501.0,0.00105645]
[1733889719879,0.20512,97504.0,97501.0,0.00405645]
[1733889720084,0.20512,97504.0,97501.0,5.645e-05]
[1733889720285,0.41024,97504.0,97501.0,0.00305645]
[1733889720469,0.41024,97504.0,97501.0,0.00805645]
[1733889721522,0.41024,97504.0,97501.0,0.00505645]
[1733889721931,0.41024,97504.0,97501.0,0.00605645]
[1733889722241,0.20512,97504.0,97501.0,0.00105645]
[1733889722448,0.205113,97508.0,97501.0,5.645e-05]
[1733889722764,0.205093,97517.0,97503.0,0.0754]
[1733889722981,0.0825,97527.0,97503.0,0.0754]
[1733889722982,0.205101,97513.0,97503.0,0.0754]
[1733889724055,0.205109,97509.0,97503.0,0.0754]
[1733889724479,0.205102,97512.0,97503.0,0.0754]
[1733889725708,0.205114,97507.0,97503.0,0.0754]
[1733889725918,0.410228,97507.0,97503.0,0.0754]
[1733889726127,0.205114,97507.0,97503.0,0.0754]
[1733889726766,0.205114,97507.0,97501.0,5.645e-05]
[1733889726767,0.002,97512.0,97501.0,5.645e-05]
[1733889726962,0.205119,97505.0,97501.0,5.645e-05]
[1733889727340,0.205104,97512.0,97501.0,5.645e-05]
[1733889727739,0.0825,97527.0,97501.0,5.645e-05]
[1733889727944,0.10532524,97526.0,97501.0,5.645e-05]
[1733889728170,0.205106,97511.0,97501.0,5.645e-05]
[1733889728430,0.10532524,97526.0,97501.0,5.645e-05]
[1733889728554,0.205116,97506.0,97501.0,5.645e-05]
[1733889728756,0.10532524,97526.0,97501.0,5.645e-05]
[1733889729077,0.001,97512.0,97501.0,5.645e-05]
[1733889729283,0.001,97512.0,97502.0,0.31044824]
[1733889729507,0.002,97511.0,97502.0,0.31044824]
[1733889729850,0.205097,97515.0,97502.0,0.31044824]
[1733889731328,8.57e-05,97520.0,97508.0,0.0771]
[1733889731592,8.57e-05,97520.0,97509.0,0.10532524]
[1733889731795,8.57e-05,97520.0,97515.0,0.205095]
[1733889732326,8.57e-05,97520.0,97517.0,0.205092]
[1733889732488,8.57e-05,97520.0,97519.0,0.205088]
[1733889732689,8.57e-05,97520.0,97519.0,0.31041324]
[1733889732690,0.0050857,97520.0,97519.0,0.31041324]
[1733889732877,8.57e-05,97520.0,97519.0,0.31041324]
[1733889733757,8.57e-05,97520.0,97519.0,0.54151324]
[1733889734185,8.57e-05,97520.0,97519.0,0.54451324]
[1733889735389,8.57e-05,97520.0,97519.0,0.54151324]
[1733889735598,8.57e-05,97520.0,97519.0,0.53751324]
[1733889735798,8.57e-05,97520.0,97519.0,0.54051324]
[1733889735979,8.57e-05,97520.0,97519.0,0.54951324]
[1733889736181,8.57e-05,97520.0,97519.0,0.54651324]
[1733889736583,8.58e-05,97540.0,97539.0,0.205046]
[1733889736928,8.58e-05,97540.0,97539.0,0.328646]
[1733889737341,8.58e-05,97540.0,97539.0,0.43397124]
[1733889737544,8.58e-05,97540.0,97539.0,0.58397124]
[1733889737992,0.00025084,97540.0,97539.0,0.58397124]
[1733889738638,0.00025084,97540.0,97539.0,0.58597124]
[1733889738841,0.00025084,97540.0,97539.0,0.58397124]
[1733889739255,0.00025084,97540.0,97539.0,0.58797124]
[1733889739632,0.00025084,97540.0,97539.0,0.3924816]
[1733889740039,0.00025084,97540.0,97539.0,0.3944816]
[1733889740440,0.00025084,97540.0,97539.0,0.3924816]
[1733889740803,0.00025084,97540.0,97539.0,0.3964816]
[1733889741323,0.00025084,97540.0,97539.0,0.3944816]
[1733889741867,0.00025084,97540.0,97539.0,0.4004816]
[1733889742027,0.00025084,97540.0,97539.0,0.3944816]
[1733889742231,0.00025084,97540.0,97539.0,0.3904816]
[1733889742488,0.00025084,97540.0,97539.0,0.4024816]
[1733889742847,0.205004,97559.0,97548.0,0.00019042]
[1733889742848,0.410008,97559.0,97548.0,0.00019042]
[1733889743059,0.20555401,97559.0,97548.0,0.00019042]
[1733889743670,0.41055901,97559.0,97548.0,0.00019042]
[1733889743871,0.205014,97555.0,97548.0,0.00019042]
[1733889744085,0.205023,97550.0,97548.0,0.00019042]
[1733889746308,0.205023,97550.0,97548.0,0.00419042]
[1733889746743,0.205023,97550.0,97548.0,0.00319042]
[1733889747235,0.208023,97550.0,97548.0,0.00319042]
[1733889747458,0.18372524,97549.0,97548.0,0.00319042]
[1733889747684,0.38282524,97549.0,97548.0,0.00319042]
[1733889747916,0.40582524,97549.0,97548.0,0.00319042]
[1733889748347,0.40582524,97549.0,97548.0,0.00019042]
[1733889748802,0.40582524,97549.0,97548.0,0.00219042]
[1733889749028,0.40582524,97549.0,97548.0,0.00019042]
[1733889749440,0.40882524,97549.0,97548.0,0.00019042]
[1733889750072,0.25882524,97549.0,97548.0,0.00019042]
[1733889750279,0.006,97549.0,97548.0,0.00019042]
[1733889750898,0.006,97549.0,97548.0,0.01123258]
[1733889753186,0.006,97549.0,97548.0,0.00019042]
[1733889754967,0.0879,97549.0,97548.0,0.00019042]
[1733889758741,0.006,97549.0,97548.0,0.00019042]
[1733889761310,0.00530973,97549.0,97548.0,0.00019042]
[1733889766672,0.00530973,97549.0,97548.0,0.04579042]
[1733889767641,0.00148962,97549.0,97548.0,0.04579042]
[1733889767841,8.57e-05,97550.0,97548.0,0.04579042]
[1733889768051,0.001,97549.0,97548.0,0.04579042]
[1733889768251,0.003,97549.0,97548.0,0.04579042]
[1733889768451,0.001,97549.0,97548.0,0.04579042]
[1733889768671,8.57e-05,97550.0,97549.0,0.0779]
[1733889770987,8.57e-05,97550.0,97549.0,0.18322524]
[1733889771392,8.57e-05,97550.0,97549.0,0.33522524]
[1733889771596,8.57e-05,97550.0,97549.0,0.33822524]
[1733889772011,8.57e-05,97550.0,97549.0,0.33522524]
[1733889772222,8.57e-05,97550.0,97549.0,0.33822524]
[1733889772372,8.57e-05,97550.0,97549.0,0.38382524]
[1733889773099,8.57e-05,97550.0,97549.0,0.47252953]
[1733889773302,8.57e-05,97550.0,97549.0,0.38382524]
[1733889774108,8.57e-05,97550.0,97549.0,0.38182524]
[1733889774630,8.57e-05,97550.0,97549.0,0.37982524]
[1733889775008,8.57e-05,97550.0,97549.0,0.38682524]
[1733889775443,8.58e-05,97560.0,97558.0,0.505006]
[1733889775684,0.204933,97593.0,97569.0,0.282883]
[1733889775853,0.204933,97593.0,97569.0,0.38820824]
[1733889775854,0.0002507,97570.0,97569.0,0.38820824]
[1733889778215,0.0002507,97570.0,97569.0,0.58380824]
[1733889778647,0.0002507,97570.0,97569.0,0.58680824]
[1733889778855,0.0002507,97570.0,97569.0,0.59380824]
[1733889779069,0.0002507,97570.0,97569.0,0.58680824]
[1733889779284,8.57e-05,97600.0,97579.0,0.485162]
[1733889779495,8.57e-05,97600.0,97583.0,0.15]
[1733889779701,8.57e-05,97600.0,97591.0,0.15]
[1733889779909,8.57e-05,97600.0,97599.0,0.35492]
[1733889780115,8.57e-05,97600.0,97599.0,0.46024524]
[1733889781194,0.00025057,97600.0,97599.0,0.46024524]
[1733889781599,0.00025057,97600.0,97599.0,0.47135067]
[1733889781982,0.00025057,97600.0,97599.0,0.47335067]
[1733889782313,0.00025057,97600.0,97599.0,0.47835067]
[1733889782517,0.00025057,97600.0,97599.0,0.47135067]
[1733889782726,0.00025057,97600.0,97599.0,0.47635067]
[1733889782926,0.00025057,97600.0,97599.0,0.47935067]
[1733889787702,0.00025057,97600.0,97599.0,0.56135067]
[1733889792599,0.00025057,97600.0,97599.0,0.55335067]
[1733889793019,0.00025057,97600.0,97599.0,0.56135067]
[1733889793221,0.00025057,97600.0,97599.0,0.56535067]
[1733889796587,0.00025057,97600.0,97599.0,0.91285067]
[1733889797208,0.00025057,97600.0,97599.0,0.90885067]
[1733889797532,0.00025057,97600.0,97599.0,0.90085067]
[1733889797699,0.00025057,97600.0,97599.0,0.91385067]
[1733889797905,0.00025057,97600.0,97599.0,0.90485067]
[1733889798267,0.00025057,97600.0,97599.0,0.90985067]
[1733889798488,0.00025057,97600.0,97599.0,0.91785067]
[1733889798725,0.00025057,97600.0,97599.0,0.90885067]
[1733889798980,0.01076001,97602.0,97601.0,0.45]
[1733889799226,0.00398312,97602.0,97601.0,0.63752524]
[1733889801276,1e-08,97602.0,97601.0,0.64652524]
[1733889801712,1e-08,97602.0,97601.0,0.65452524]
[1733889802334,1e-08,97602.0,97601.0,0.35452524]
[1733889802562,1e-08,97602.0,97601.0,0.12232524]
[1733889803403,1e-08,97602.0,97601.0,0.11432524]
[1733889803814,1e-08,97602.0,97601.0,0.12232524]
[1733889804027,1e-08,97602.0,97601.0,0.11202524]
[1733889804234,1e-08,97602.0,97601.0,0.11302524]
[1733889804661,1e-08,97602.0,97601.0,0.11102524]
[1733889804870,1e-08,97602.0,97601.0,0.27002524]
[1733889805079,1e-08,97602.0,97601.0,0.34522524]
[1733889805281,1e-08,97602.0,97601.0,0.33622524]
[1733889805499,1e-08,97602.0,97601.0,0.34122524]
[1733889805906,1e-08,97602.0,97601.0,0.33822524]
[1733889806351,1e-08,97602.0,97601.0,0.25602524]
[1733889806762,1e-08,97602.0,97601.0,0.25402524]
[1733889807086,1e-08,97602.0,97601.0,0.26002524]
[1733889807549,1e-08,97602.0,97601.0,0.25802524]
[1733889807748,1e-08,97602.0,97601.0,0.25402524]
[1733889808147,1e-08,97602.0,97601.0,0.25802524]
[1733889808475,1e-08,97602.0,97601.0,0.26502524]
[1733889808672,1e-08,97602.0,97601.0,0.11502524]
[1733889813422,1e-08,97602.0,97601.0,0.011]
[1733889816602,0.08100001,97602.0,97601.0,0.011]
[1733889817743,0.204915,97601.0,97599.0,0.00016487]
[1733889818466,0.0479,97600.0,97599.0,0.00016487]
[1733889819986,0.204915,97601.0,97599.0,0.00016487]
[1733889820193,0.08200001,97602.0,97599.0,0.00016487]
[1733889820424,1e-08,97602.0,97599.0,0.00016487]
[1733889820832,0.001,97600.0,97599.0,0.00016487]
[1733889821232,1e-08,97602.0,97599.0,0.00016487]
[1733889821661,0.002,97600.0,97599.0,0.00016487]
[1733889821787,0.00100001,97602.0,97599.0,0.01112451]
[1733889821995,0.00100001,97602.0,97599.0,0.00016487]
[1733889822191,1e-08,97602.0,97599.0,0.00316487]
[1733889822939,1e-08,97602.0,97599.0,0.00016487]
[1733889822940,0.204915,97601.0,97599.0,0.00016487]
[1733889823125,1e-08,97602.0,97599.0,0.00016487]
[1733889823512,0.204915,97601.0,97599.0,0.00216487]
[1733889823659,0.204915,97601.0,97599.0,0.00316487]
[1733889824226,0.204915,97601.0,97599.0,0.00216487]
[1733889824433,0.0795,97600.0,97599.0,0.00216487]
[1733889824801,0.0795,97600.0,97599.0,0.00116487]
[1733889825044,0.0795,97600.0,97599.0,0.00416487]
[1733889825246,0.0795,97600.0,97599.0,0.00016487]
[1733889825652,0.0815,97600.0,97599.0,0.00116487]
[1733889825909,0.0815,97600.0,97599.0,0.00016487]
[1733889826133,0.0795,97600.0,97599.0,0.00016487]
[1733889826350,0.1045,97600.0,97599.0,0.00016487]
[1733889827001,0.20982524,97600.0,97599.0,0.00016487]
[1733889827204,0.21082524,97600.0,97599.0,0.00016487]
[1733889827651,0.20982524,97600.0,97599.0,0.00016487]
[1733889828052,0.20882524,97600.0,97599.0,0.00016487]
[1733889828258,0.44966213,97600.0,97599.0,0.00016487]
[1733889828464,0.51082524,97600.0,97599.0,8.7e-07]
[1733889828667,0.51082524,97600.0,97590.0,4e-07]
[1733889828668,0.028,97591.0,97590.0,4e-07]
[1733889828869,0.73185444,97591.0,97590.0,4e-07]
[1733889829083,0.79910831,97591.0,97590.0,4e-07]
[1733889829319,0.60310765,97591.0,97590.0,4e-07]
[1733889829551,0.51126124,97591.0,97590.0,4e-07]
[1733889829772,0.56066124,97591.0,97590.0,4e-07]
[1733889830621,0.71066124,97591.0,97590.0,4e-07]
[1733889831026,0.71066124,97591.0,97590.0,0.0010004]
[1733889831027,0.71466124,97591.0,97590.0,0.0010004]
[1733889831438,0.310457,97581.0,97580.0,0.0001714]
[1733889831661,0.41578224,97581.0,97580.0,0.0001714]
[1733889832833,0.42078224,97581.0,97580.0,0.0011714]
[1733889833177,0.42278224,97581.0,97580.0,0.0011714]
[1733889833789,0.42283851,97581.0,97580.0,0.0011714]
[1733889836499,0.47386574,97581.0,97580.0,0.0011714]
[1733889837986,0.47386574,97581.0,97580.0,4e-07]
[1733889837987,0.77386574,97581.0,97580.0,4e-07]
[1733889838525,0.72283851,97581.0,97580.0,4e-07]
[1733889839876,0.91903851,97581.0,97580.0,4e-07]
[1733889840610,0.91903851,97581.0,97548.0,0.00019042]
[1733889840611,0.15,97568.0,97548.0,0.00019042]
[1733889840810,0.205025,97549.0,97548.0,0.00019042]
[1733889842032,0.20508124,97549.0,97548.0,0.00019042]
[1733889843470,5.624e-05,97549.0,97548.0,0.07809042]
[1733889843912,5.624e-05,97549.0,97548.0,0.07709042]
[1733889844318,5.624e-05,97549.0,97548.0,0.07809042]
[1733889844544,5.624e-05,97549.0,97548.0,0.08009042]
[1733889844751,5.624e-05,97549.0,97548.0,0.07809042]
[1733889845180,5.624e-05,97549.0,97548.0,0.08009042]
[1733889845454,5.624e-05,97549.0,97548.0,0.07809042]
[1733889845665,5.624e-05,97549.0,97548.0,0.07709042]
[1733889845845,5.624e-05,97549.0,97548.0,0.12819042]
[1733889846112,5.624e-05,97549.0,97548.0,0.13932292]
[1733889846866,5.624e-05,97549.0,97548.0,0.14032292]
[1733889847294,5.624e-05,97549.0,97548.0,0.13732292]
[1733889847662,0.00105624,97549.0,97548.0,0.14832292]
[1733889847868,0.00105624,97549.0,97548.0,0.00419042]
[1733889847869,5.624e-05,97549.0,97548.0,0.00419042]
[1733889848277,5.624e-05,97549.0,97548.0,0.00719042]
[1733889848481,5.624e-05,97549.0,97548.0,0.00419042]
[1733889848923,5.624e-05,97549.0,97548.0,0.00319042]
[1733889849125,5.624e-05,97549.0,97548.0,0.00019042]
[1733889849328,5.624e-05,97549.0,97548.0,0.00219042]
[1733889849911,5.624e-05,97549.0,97548.0,0.00019042]
[1733889852678,0.20505,97537.0,97536.0,0.03425982]
[1733889853851,0.20505,97537.0,97536.0,0.03725982]
[1733889854300,0.20505,97537.0,97536.0,0.003]
[1733889854532,0.20605,97537.0,97536.0,0.009]
[1733889855229,0.33337524,97537.0,97536.0,0.003]
[1733889855657,0.41272106,97537.0,97536.0,0.003]
[1733889855868,0.40772106,97537.0,97536.0,0.003]
[1733889856245,0.205111,97508.0,97507.0,0.0498]
[1733889857016,0.2051,97514.0,97507.0,0.0498]
[1733889857017,0.205096,97516.0,97507.0,0.0498]
[1733889857212,0.205096,97516.0,97507.0,0.06052156]
[1733889857421,0.205086,97520.0,97508.0,0.10532524]
[1733889857641,0.205096,97516.0,97508.0,0.10532524]
[1733889857880,0.205104,97512.0,97507.0,0.06407157]
[1733889858163,0.410208,97512.0,97507.0,0.06107157]
[1733889858397,0.205088,97519.0,97507.0,0.06107157]
[1733889858638,0.205087,97520.0,97509.0,0.077]
[1733889858639,0.002,97520.0,97509.0,0.077]
[1733889858866,0.205077,97525.0,97509.0,0.18232524]
[1733889859073,0.205085,97521.0,97509.0,0.18232524]
[1733889859963,0.15,97563.0,97511.0,0.15]
[1733889860172,0.15,97563.0,97507.0,0.06307157]
[1733889860173,0.205053,97536.0,97521.0,0.205083]
[1733889860588,0.0765,97555.0,97514.0,0.1268]
[1733889860589,0.205033,97546.0,97522.0,0.10532524]
[1733889860839,0.205018,97552.0,97523.0,0.1268]
[1733889861183,0.3,97571.0,97523.0,0.1268]
[1733889861184,0.205013,97555.0,97527.0,0.205071]
[1733889861389,0.205017,97553.0,97540.0,0.077]
[1733889862189,0.003,97546.0,97540.0,0.077]
[1733889862394,0.205017,97553.0,97540.0,0.077]
[1733889862395,0.205026,97549.0,97540.0,0.077]
[1733889862598,0.205035,97545.0,97540.0,0.077]
[1733889862740,0.41007,97545.0,97540.0,0.07755001]
[1733889863372,0.41007,97545.0,97540.0,0.00055001]
[1733889863625,0.41007,97545.0,97540.0,0.00355001]
[1733889863978,0.205035,97545.0,97540.0,0.00055001]
[1733889864395,0.205038,97543.0,97540.0,0.00155001]
[1733889864816,0.410076,97543.0,97540.0,0.00155001]
[1733889865620,0.410076,97543.0,97540.0,0.00055001]
[1733889866027,0.40902056,97543.0,97540.0,0.00055001]
[1733889866886,0.40902056,97543.0,97540.0,0.00072161]
[1733889867638,0.41102056,97543.0,97540.0,0.00072161]
[1733889870124,0.06160506,97542.0,97540.0,0.00072161]
[1733889870360,0.205041,97541.0,97540.0,0.00072161]
[1733889871032,0.78336624,97541.0,97540.0,6.1e-07]
[1733889871275,0.81528196,97541.0,97540.0,6.1e-07]
[1733889871522,0.92038525,97541.0,97540.0,6.1e-07]
[1733889871767,0.92138525,97541.0,97540.0,6.1e-07]
[1733889872016,1.14537785,97541.0,97540.0,6.1e-07]
[1733889872253,1.05362296,97541.0,97540.0,6.1e-07]
[1733889872511,0.95751967,97541.0,97540.0,6.1e-07]
[1733889873351,0.96826486,97541.0,97540.0,6.1e-07]
[1733889873986,0.96826486,97541.0,97503.0,0.0469]
[1733889873987,0.15,97532.0,97503.0,0.0469]
[1733889874199,0.205119,97504.0,97503.0,0.0470649]
[1733889875670,0.206119,97504.0,97503.0,0.0520649]
[1733889878212,0.206119,97504.0,97503.0,0.0540649]
[1733889879909,0.001,97504.0,97503.0,0.0540649]
[1733889881156,0.001,97504.0,97503.0,0.15939014]
[1733889882347,0.001,97504.0,97503.0,0.30939014]
[1733889882954,0.001,97504.0,97503.0,0.38699014]
[1733889883800,0.0824,97549.0,97503.0,0.38199014]
[1733889883801,0.205066,97530.0,97503.0,0.38199014]
[1733889883953,0.0824,97549.0,97508.0,0.0776]
[1733889884171,0.20505,97538.0,97511.0,0.1261]
[1733889884373,0.20505,97538.0,97512.0,0.25532524]
[1733889884571,0.205054,97535.0,97513.0,0.2051]
[1733889884752,0.205054,97535.0,97519.0,0.205086]
[1733889884952,0.205054,97535.0,97520.0,0.10532524]
[1733889885181,0.205065,97531.0,97520.0,0.10532524]
[1733889887642,0.20305332,97526.0,97520.0,0.10532524]
[1733889887971,0.40812732,97526.0,97520.0,0.10532524]
[1733889888133,0.20305332,97526.0,97520.0,0.10532524]
[1733889888901,0.20305332,97526.0,97520.0,0.11639967]
[1733889889307,0.20505332,97526.0,97520.0,0.11639967]
[1733889889883,0.20605332,97526.0,97520.0,0.11639967]
[1733889891101,0.20605332,97526.0,97520.0,0.11657127]
[1733889896275,0.205083,97522.0,97520.0,0.01124603]
[1733889897736,0.205083,97522.0,97520.0,0.01224603]
[1733889901314,0.205083,97522.0,97520.0,0.0011716]
[1733889901866,0.0819,97521.0,97520.0,0.0011716]
[1733889902457,0.205083,97522.0,97520.0,0.0011716]
[1733889903318,0.206083,97522.0,97520.0,0.0001716]
[1733889903716,0.207083,97522.0,97520.0,0.0001716]
[1733889903865,0.205083,97522.0,97520.0,0.0001716]
[1733889904068,0.206083,97522.0,97520.0,0.0001716]
[1733889904480,0.205083,97522.0,97520.0,0.0001716]
[1733889906294,0.205083,97522.0,97520.0,0.01101326]
[1733889907560,0.205083,97522.0,97520.0,0.0001716]
[1733889908097,0.205084,97521.0,97520.0,0.0001716]
[1733889908298,0.0819,97537.0,97520.0,0.0001716]
[1733889908585,0.205081,97523.0,97520.0,0.0001716]
[1733889908835,8.59e-05,97540.0,97520.0,0.0001716]
[1733889909020,8.59e-05,97540.0,97521.0,0.0822]
[1733889909169,0.205062,97532.0,97521.0,0.0822]
[1733889909367,0.205062,97532.0,97522.0,0.0493]
[1733889909553,0.410124,97532.0,97522.0,0.0493]
[1733889909759,8.59e-05,97540.0,97522.0,0.0493]
[1733889909965,0.20507,97528.0,97522.0,0.0493]
[1733889910368,8.59e-05,97540.0,97522.0,0.0493]
[1733889910369,0.205071,97527.0,97522.0,0.0493]
[1733889910591,0.205064,97531.0,97522.0,0.0493]
[1733889910997,0.20505,97537.0,97522.0,0.15462524]
[1733889911202,8.59e-05,97540.0,97522.0,0.15462524]
[1733889911203,0.002,97532.0,97523.0,0.10532524]
[1733889911411,8.59e-05,97540.0,97525.0,0.0822]
[1733889911612,8.59e-05,97540.0,97529.0,0.205066]
[1733889911836,8.59e-05,97540.0,97533.0,0.205057]
[1733889912070,8.59e-05,97540.0,97534.0,0.10532524]
[1733889912272,8.59e-05,97540.0,97537.0,0.410098]
[1733889912511,8.59e-05,97540.0,97539.0,0.205046]
[1733889912722,8.59e-05,97540.0,97539.0,0.31037124]
[1733889912921,8.59e-05,97540.0,97539.0,0.39257124]
[1733889913130,8.59e-05,97540.0,97539.0,0.39273614]
[1733889913542,0.0010859,97540.0,97539.0,0.39273614]
[1733889913777,8.59e-05,97540.0,97539.0,0.39273614]
[1733889914177,0.0010859,97540.0,97539.0,0.39873614]
[1733889914605,0.0040859,97540.0,97539.0,0.39873614]
[1733889915012,0.0010859,97540.0,97539.0,0.39873614]
[1733889915428,0.0010859,97540.0,97539.0,0.40173614]
[1733889916691,0.0010859,97540.0,97539.0,0.19669014]
[1733889916956,0.0010859,97540.0,97539.0,0.0091649]
[1733889918211,0.0010859,97540.0,97539.0,0.0061649]
[1733889918393,0.0010859,97540.0,97539.0,0.0071649]
[1733889919050,8.59e-05,97540.0,97539.0,0.0001649]
[1733889919264,0.0010859,97540.0,97539.0,0.0021649]
[1733889919692,0.0010859,97540.0,97539.0,0.0001649]
[1733889919895,0.0828859,97540.0,97539.0,0.0001649]
[1733889920321,0.23621114,97540.0,97539.0,0.0001649]
[1733889921396,0.0828859,97540.0,97539.0,0.0001649]
[1733889921593,0.0040859,97540.0,97539.0,0.0001649]
[1733889923752,0.0851859,97540.0,97539.0,0.0001649]
[1733889925403,0.19051114,97540.0,97539.0,0.0001649]
[1733889925758,0.28253041,97540.0,97539.0,0.0001649]
[1733889925952,0.19051114,97540.0,97539.0,0.0001649]
[1733889926161,0.28253089,97540.0,97539.0,0.0001649]
[1733889926368,0.19051114,97540.0,97539.0,0.0001649]
[1733889928028,0.20148216,97540.0,97539.0,0.0001649]